[Event "Chinese League Division-A 2024"]
[Site "Fuling Chongqing"]
[Date "2024.07.02"]
[Round "6.2"]
[White "Wei, Yi"]
[Black "Li, Chao b"]
[Result "1-0"]
[ECO "B01"]
[WhiteElo "2755"]
[BlackElo "2645"]
[Annotator "TA"]
[PlyCount "65"]
[EventDate "2024.06.28"]
[EventType "team-tourn"]
[EventCountry "CHN"]
[SourceTitle "playchess.com"]
[Source "ChessBase"]
[SourceQuality "1"]
[TimeControl "40/5400+30:1800+30"]

{[%evp 9,65,37,48,35,37,38,39,29,30,22,41,0,25,37,37,31,35,32,23,22,47,62,43,48,59,68,74,67,89,94,125,105,91,106,139,114,164,153,191,214,191,200,185,195,184,106,280,280,265,182,191,246,197,177,162,69,614,585]} 1. e4 {[%emt 0:00:09]} d5 {[%emt 0:00:19]} 2. exd5 {[%emt 0:00:13]} Qxd5 {[%emt 0:00:05]} 3. Nc3 {[%emt 0:00:04]} Qa5 {[%emt 0:00:10]} 4. d4 {[%emt 0:01:26]} Nf6 {[%emt 0:00:08]} 5. Bd2 {[%emt 0:03:29]} Bg4 {[%emt 0:01:31]} 6. f3 {[%emt 0:02:14]} Bd7 {[%emt 0:00:08]} 7. Bc4 {[%emt 0:06:03][%cal Oc3d5]} Qb6 {[%emt 0:00:12][%csl LRb2,LRd4]} 8. Nge2 {[%emt 0:09:00] White is slightly better.} e6 {[%emt 0:00:14][%cal Of8e7]} 9. O-O {[%emt 0:04:35]} Be7 {[%emt 0:01:46][%cal Oe8g8]} 10. b4 {[%emt 0:04:09]} a6 {[%emt 0:07:39][%cal Ob8c6]} (10... O-O $5) 11. a3 {[%emt 0:17:24]} c5 {[%emt 0:14:16]} 12. bxc5 {[%emt 0:02:49]} Bxc5 {[%emt 0:02:18]} 13. Bg5 {[%emt 0:14:14][%cal Og5f6] And now Bxf6! would win.} Be7 {[%emt 0:06:41]} 14. Ne4 {[%emt 0:02:33]} Nxe4 {[%emt 0:24:34]} (14... Qd8 {simplifies} 15. Nxf6+ Bxf6 16. Bxf6 Qxf6 17. c3 Nc6) 15. Bxe7 {[%emt 0:00:08]} Nd6 {[%emt 0:00:14]} 16. Rb1 {[%emt 0:00:21]} Qc7 {[%emt 0:00:27]} 17. Bxd6 {[%emt 0:00:18]} Qxd6 {[%emt 0:00:04]} 18. Rxb7 {[%emt 0:02:56]} Qxa3 {[%emt 0:02:17]} 19. d5 {[%emt 0:03:20] White has more active pieces.} e5 {[%emt 0:07:09] Prevents Qd4. White must now prevent ...Qc5+.} 20. Qd3 $36 {[%emt 0:05:41][%mdl 2048] White is in control.} Qc5+ {[%emt 0:00:54]} 21. Kh1 {[%emt 0:00:21] Threatens to win with d6.} O-O {[%emt 0:03:13][%cal Be8g8,Bg8f7,Bf7g6][%mdl 32]} 22. d6 {[%emt 0:03:26] Rc7 would now be deadly.} Ra7 {[%emt 0:10:54] [#]} (22... Rc8 $16 23. Bd5 Ra7 24. Rxa7 Qxa7) 23. Bxf7+ $1 $18 {[%emt 0:02:21][%mdl 512]} Kxf7 {[%emt 0:00:25]} (23... Kh8 24. Rxa7) 24. Qb3+ {[%emt 0:00:06]} Kg6 {[%emt 0:00:24] Hoping for ...Rxb7.} 25. Rxb8 {[%emt 0:00:06]} Rxb8 {[%emt 0:06:14]} 26. Qxb8 {[%emt 0:00:08]} Bc6 {[%emt 0:00:50][%cal Oa7b7]} 27. Ng3 {[%emt 0:01:29]} (27. Rd1 $18 {Qc8 is the strong threat.} Rf7 28. Qb3) 27... Rf7 $2 {[%emt 0:02:38] [#]} (27... h6 $16 28. h3 Rd7) 28. Qc8 $1 {[%emt 0:03:38] White wants to mate with Qg4+.} Qxd6 {[%emt 0:04:43]} 29. Qh3 {[%emt 0:01:37] Strongly threatening Qh5+.} ({Weaker is} 29. Qxa6 Rd7 30. h3 h6 $16) 29... Rf4 {[%emt 0:02:13]} 30. Qh5+ {[%emt 0:00:40]} Kf6 {[%emt 0:00:02]} 31. Qxh7 {[%emt 0:00:10]} g6 {[%emt 0:00:16][%cal Oe5e4] [#] Prevents Nh5+} 32. Re1 {[%emt 0:01:14]} ({White should play} 32. c4 $1 $18) 32... a5 $2 {[%emt 0:01:35][%mdl 8192] [#]} (32... Qd2 $14 33. Rf1 (33. Qh8+ Kf7 $16) 33... Qd6) 33. Nh5+ $1 {[%emt 0:00:06][%mdl 512] Weighted Error Value: White=0.18 (very precise) /Black=0.38.  Loses game:     	---       	Black=2      Mistake:       	White=2     	Black=1      Inaccurate:     	White=2     	Black=2      OK:         	White=16    	Black=9      Best:        	White=1     	Black=1      Strong:       	White=1     	---        Brilliant:      	White=1     	---} 1-0

[Event "Chinese League Division-A 2024"]
[Site "Fuling Chongqing"]
[Date "2024.07.02"]
[Round "6.2"]
[White "Wei, Yi"]
[Black "Li, Chao b"]
[Result "*"]
[ECO "B01"]
[WhiteElo "2755"]
[BlackElo "2645"]
[Annotator "TA"]
[PlyCount "28"]
[EventDate "2024.06.28"]
[EventType "team-tourn"]
[EventCountry "CHN"]
[SourceTitle "playchess.com"]
[Source "ChessBase"]
[SourceQuality "1"]
[TimeControl "40/5400+30:1800+30"]

{[%evp 9,28,37,51,33,39,37,40,32,33,24,16,10,18,23,23,41,31,25,42,45,917]} 1. e4 {[%emt 0:00:09]} d5 {[%emt 0:00:19]} 2. exd5 {[%emt 0:00:13]} Qxd5 {[%emt 0:00:05]} 3. Nc3 {[%emt 0:00:04]} Qa5 {[%emt 0:00:10]} 4. d4 {[%emt 0:01:26]} Nf6 {[%emt 0:00:08]} 5. Bd2 {[%emt 0:03:29]} Bg4 {[%emt 0:01:31]} 6. f3 {[%emt 0:02:14]} Bd7 {[%emt 0:00:08]} 7. Bc4 {[%emt 0:06:03][%cal Oc3d5] [#] Strongly threatening Nd5!} Qb6 {[%emt 0:00:12][%csl LRb2,LRd4]} 8. Nge2 {[%emt 0:09:00]} e6 {[%emt 0:00:14][%cal Of8e7]} 9. O-O {[%emt 0:04:35]} Be7 {[%emt 0:01:46]} 10. b4 {[%emt 0:04:09]} a6 {[%emt 0:07:39][%cal Ob8c6]} 11. a3 {[%emt 0:17:24]} c5 {[%emt 0:14:16]} 12. bxc5 {[%emt 0:02:49]} Bxc5 {[%emt 0:02:18]} 13. Bg5 {[%emt 0:14:14][%cal Og5f6] [#] And now Bxf6! would win.} Be7 {[%emt 0:06:41]} 14. Ne4 {[%emt 0:02:33]} Qd6 $2 {[%mdl 8192] Weighted Error Value: White=0.04 (flawless) /Black=0.01 (flawless) .  Loses game:     	---       	Black=1      OK:         	White=6     	Black=4      Best:        	---       	Black=1} *

[Event "Chinese League Division-A 2024"]
[Site "Fuling Chongqing"]
[Date "2024.07.02"]
[Round "6.3"]
[White "Zhang, Di"]
[Black "Lin, Chen"]
[Result "0-1"]
[ECO "C45"]
[WhiteElo "2362"]
[BlackElo "2484"]
[Annotator "TA"]
[PlyCount "96"]
[EventDate "2024.06.28"]
[EventType "team-tourn"]
[EventCountry "CHN"]
[SourceTitle "playchess.com"]
[Source "ChessBase"]
[SourceQuality "1"]
[TimeControl "40/5400+30:1800+30"]

{[%evp 20,96,93,67,90,66,91,80,92,22,113,69,91,62,115,115,113,118,131,97,114,29,33,0,0,0,0,0,0,0,0,0,0,0,49,27,45,51,91,75,108,55,90,101,84,0,0,0,0,0,-9,-262,-260,-632,-607,-696,-685,-932,-547,-1069,-1057,-1177,-1177,-1738,-1541,-1891,-2015,-1785,-1433,-1791,-3164,-4610,-4610,-5514,-5391,-29985,-29986,-29989,-29987]} 1. e4 {[%emt 0:00:04]} e5 {[%emt 0:01:26]} 2. Nf3 {[%emt 0:00:23]} Nc6 {[%emt 0:00:13]} 3. d4 {[%emt 0:00:12]} exd4 {[%emt 0:00:55]} 4. Nxd4 {[%emt 0:00:07]} Bc5 {[%emt 0:03:44]} 5. Nf5 {[%emt 0:01:35]} Qf6 {[%emt 0:10:06]} 6. Nc3 {[%emt 0:01:15] C45: Scotch Game.} Nge7 {[%emt 0:00:37]} 7. Qg4 {[%emt 0:12:19]} O-O {[%emt 0:15:33]} 8. Bg5 $146 {[%emt 0:02:14]} ({Predecessor:} 8. Nxe7+ Nxe7 9. Qf4 Qb6 10. Bd3 Ng6 11. Qd2 Qc6 12. Nd5 f5 13. O-O b5 14. exf5 Qxd5 15. fxg6 hxg6 16. Bxb5 Qxd2 17. Bxd2 {1-0 Posylek,C (2357)-Ikegami,O olm15 qual GP3 B3 email 2003}) 8... Qg6 {[%emt 0:00:07]} 9. Qf4 {[%emt 0:01:46]} d5 {[%emt 0:12:44]} 10. O-O-O {[%emt 0:21:10]} dxe4 {[%emt 0:20:39]} (10... Nxf5 $2 11. exf5 Qd6 (11... Bxf5 $2 12. Rxd5 Bxc2 13. Rxc5 $18) 12. Qh4 $18 (12. Nxd5 Qxf4+ 13. Bxf4 $11)) (10... f6 $1 $15 {keeps the upper hand.}) 11. Nxe7+ $1 $16 {[%emt 0:03:38]} (11. Nxe4 Nxf5 (11... Bxf5 12. Nxc5 b6 13. Nd3 $17) 12. Nxc5 h6 $17) 11... Bxe7 {[%emt 0:00:05]} 12. Bxe7 {[%emt 0:00:18]} (12. Nxe4 Bxg5 13. Nxg5 Bf5 $15) 12... Nxe7 {[%emt 0:00:06]} 13. Qxc7 {[%emt 0:15:59]} (13. Qxe4 Qxe4 14. Nxe4 Bf5 $11) 13... Nc6 {[%emt 0:00:32]} 14. Bb5 {[%emt 0:01:20]} (14. Qf4 $16) 14... Re8 {[%emt 0:08:56]} (14... Qxg2 $11 {keeps the balance.} 15. Bxc6 bxc6) 15. Kb1 {[%emt 0:11:27]} a6 {[%emt 0:04:31]} 16. Bc4 {[%emt 0:06:21]} Be6 {[%emt 0:00:05]} ({Black should play} 16... Bf5 $1 $14) 17. Bxe6 $16 {[%emt 0:02:06]} Qxe6 {[%emt 0:00:10]} 18. Qxb7 {[%emt 0:01:36]} Rab8 {[%emt 0:14:35]} 19. Qxa6 {[%emt 0:06:11]} Qf6 {[%emt 0:00:14]} 20. Qc4 {[%emt 0:05:06]} (20. Qa3 $16) 20... Rec8 $11 {[%emt 0:00:09]} 21. Qc5 {[%emt 0:03:49]} (21. Nxe4 $2 Qxb2#) 21... Ne7 {[%emt 0:01:53]} 22. Qd4 {[%emt 0:01:16]} Qxd4 $1 {[%emt 0:00:09]} ({Worse is} 22... Rxc3 23. Qd8+ Rxd8 24. Rxd8#) 23. Rxd4 {[%emt 0:00:02]} Rxc3 {[%emt 0:00:06]} 24. Rhd1 {[%emt 0:00:47]} Nc6 {[%emt 0:00:59]} 25. Rxe4 {[%emt 0:00:22]} Rc5 {[%emt 0:00:15]} 26. a3 {[%emt 0:01:00]} g6 {[%emt 0:00:24]} (26... f5 $11 {might be stronger.} 27. Re6 Ne5) 27. b4 $1 $14 {[%emt 0:00:32]} f5 {[%emt 0:01:23]} 28. Re3 {[%emt 0:00:32]} Rc4 {[%emt 0:00:14]} 29. Kb2 {[%emt 0:00:15]} Kf7 {[%emt 0:00:22]} 30. Rd5 {[%emt 0:00:48]} ({Better is} 30. Rd7+ $16 Kg8 31. Rc3 Rxc3 32. Kxc3) 30... Rc8 {[%emt 0:00:33] [#]} 31. c3 $1 {[%emt 0:00:22]} (31. Rd7+ Kg8 $17) 31... f4 {[%emt 0:00:04] [#]} 32. Red3 {[%emt 0:00:52]} ({White should try} 32. Re2 $1 $16) 32... Ke6 $11 {[%emt 0:00:06]} 33. Rd6+ {[%emt 0:00:40]} Kf5 {[%emt 0:00:21]} 34. R6d5+ {[%emt 0:00:29]} Ne5 {[%emt 0:00:30]} 35. f3 $2 {[%emt 0:00:26][%mdl 8192]} (35. Rd2 $11) 35... Ke6 $19 {[%emt 0:00:04]} 36. Kb3 $2 {[%emt 0:00:39]} ({Not} 36. Rd6+ $2 Ke7 37. Rd2 Rxc3 $19) (36. Rd1 Rxc3 37. b5 Rc2+ 38. Kb3 Rxg2 39. R5d4) 36... Nxd3 $19 {[%emt 0:00:12]} 37. Rxd3 {[%emt 0:00:01]} R4c7 {[%emt 0:00:05]} 38. a4 {[%emt 0:00:49]} Rd7 {[%emt 0:00:46]} 39. Rxd7 {[%emt 0:00:09]} Kxd7 {[%emt 0:00:03]} 40. c4 {[%emt 0:00:00]} Kc6 {[%emt 0:00:00]} 41. Kc3 {[%emt 0:01:27]} g5 {[%emt 0:02:35]} 42. a5 {[%emt 0:01:51]} Re8 {[%emt 0:01:59]} 43. Kd4 {[%emt 0:05:22]} Rd8+ {[%emt 0:00:06]} 44. Ke5 {[%emt 0:02:44]} Rd2 {[%emt 0:16:37]} 45. g4 {[%emt 0:06:37]} Rd3 {[%emt 0:04:44]} 46. Kf5 {[%emt 0:04:07]} h6 {[%emt 0:00:06]} 47. Kg6 {[%emt 0:02:54]} Rxf3 {[%emt 0:00:16]} 48. Kxh6 {[%emt 0:00:02]} Ra3 {[%emt 0:00:49]} 0-1

[Event "Chinese League Division-A 2024"]
[Site "Fuling Chongqing"]
[Date "2024.07.02"]
[Round "6.4"]
[White "Shen, Yang"]
[Black "Li, Ruofan"]
[Result "1-0"]
[ECO "D35"]
[WhiteElo "2394"]
[BlackElo "2321"]
[Annotator "RC"]
[PlyCount "122"]
[EventDate "2024.06.28"]
[EventType "team-tourn"]
[EventCountry "CHN"]
[SourceTitle "playchess.com"]
[Source "ChessBase"]
[SourceQuality "1"]
[TimeControl "40/5400+30:1800+30"]

1. d4 {[%emt 0:00:07]} d5 {[%emt 0:00:06]} 2. Nf3 {[%emt 0:01:03]} Nf6 {[%emt 0:00:18]} 3. c4 {[%emt 0:00:10]} e6 {[%emt 0:00:05]} 4. Nc3 {[%emt 0:00:11]} Be7 {[%emt 0:00:04]} 5. cxd5 {[%emt 0:01:10]} exd5 {[%emt 0:00:06]} 6. Bf4 {[%emt 0:00:11]} c6 {[%emt 0:02:35]} 7. h3 {[%emt 0:01:06]} Bd6 {[%emt 0:03:52]} 8. e3 {[%emt 0:01:41]} O-O {[%emt 0:06:54]} 9. Bd3 {[%emt 0:01:43]} Re8 {[%emt 0:16:34]} 10. O-O {[%emt 0:01:44]} Qc7 {[%emt 0:02:08]} 11. Qc1 {[%emt 0:02:05]} Nbd7 {[%emt 0:01:25]} 12. Nb5 cxb5 {[%emt 0:00:06]} 13. Qxc7 {[%emt 0:03:26]} Bxc7 {[%emt 0:00:01]} 14. Bxc7 {[%emt 0:00:13]} a6 {[%emt 0:00:50]} 15. Rac1 {[%emt 0:02:21]} Nf8 {[%emt 0:01:06]} 16. Nd2 {[%emt 0:04:40]} Bd7 {[%emt 0:01:31]} 17. Be5 {[%emt 0:11:26]} Re6 {[%emt 0:00:31]} 18. Nb3 {[%emt 0:02:23]} Rc8 {[%emt 0:04:23]} 19. Nc5 {[%emt 0:04:39]} Rec6 {[%emt 0:01:24]} 20. Rcd1 {[%emt 0:01:43]} Rb6 {[%emt 0:03:13]} 21. f3 {[%emt 0:04:54]} Be6 {[%emt 0:01:12]} 22. b4 {[%emt 0:05:59]} N8d7 {[%emt 0:03:35]} 23. f4 {[%emt 0:01:38]} Nxc5 {[%emt 0:15:47]} 24. dxc5 {[%emt 0:01:17]} Rbc6 {[%emt 0:00:04]} 25. Bxf6 {[%emt 0:02:46]} gxf6 {[%emt 0:00:05]} 26. f5 {[%emt 0:00:37]} Bd7 {[%emt 0:00:03]} 27. Be2 {[%emt 0:02:25]} Re8 {[%emt 0:12:39]} 28. Rxd5 {[%emt 0:00:28]} Rxe3 {[%emt 0:01:49]} 29. Bxb5 {[%emt 0:02:35]} axb5 {[%emt 0:00:08]} 30. Rxd7 {[%emt 0:00:06]} b6 {[%emt 0:00:09]} 31. cxb6 {[%emt 0:01:03]} Rxb6 {[%emt 0:00:01]} 32. Rc1 {[%emt 0:01:32]} Rb8 {[%emt 0:16:50]} 33. Rcc7 {[%emt 0:03:40]} Rf8 {[%emt 0:00:08]} 34. Rc5 {[%emt 0:11:32]} Ra8 {[%emt 0:01:10]} 35. Rxb5 {[%emt 0:02:09]} Rxa2 {[%emt 0:01:54]} 36. Rb8+ {[%emt 0:03:00]} Kg7 {[%emt 0:00:05]} 37. Rdd8 {[%emt 0:00:30]} Re5 {[%emt 0:02:30]} 38. Rg8+ {[%emt 0:01:26]} Kh6 {[%emt 0:00:04]} 39. Rb7 {[%emt 0:01:24]} Rxf5 {[%emt 0:00:10]} 40. Rxf7 {[%emt 0:00:00]} Rf4 {[%emt 0:00:00]} 41. b5 {[%emt 0:02:33]} Rb2 {[%emt 0:05:10]} 42. Rgg7 {[%emt 0:01:15]} Rf5 {[%emt 0:13:27]} 43. Rxh7+ {[%emt 0:00:46]} Kg5 {[%emt 0:00:02]} 44. Rhg7+ {[%emt 0:00:58]} Kh6 {[%emt 0:05:37]} 45. Rh7+ {[%emt 0:08:17]} Kg5 {[%emt 0:00:02]} 46. Rfg7+ {[%emt 0:02:33]} Kf4 {[%emt 0:00:05]} 47. Rg4+ {[%emt 0:00:16]} Ke3 {[%emt 0:01:48]} 48. Rg3+ {[%emt 0:04:41]} Ke4 {[%emt 0:00:22]} 49. Re7+ {[%emt 0:02:50]} Re5 {[%emt 0:00:42]} 50. Rf7 {[%emt 0:02:21]} f5 {[%emt 0:00:22]} 51. Rf3 {[%emt 0:02:21]} Rbxb5 {[%emt 0:04:48]} 52. Kh2 {[%emt 0:01:13]} Rb8 {[%emt 0:01:39]} 53. h4 {[%emt 0:00:58]} Rh8 {[%emt 0:02:28]} 54. Kh3 {[%emt 0:00:11]} Rd5 {[%emt 0:00:04]} 55. Rf1 {[%emt 0:03:00]} Rh5 {[%emt 0:04:32]} 56. Re1+ {[%emt 0:00:41]} Kd4 {[%emt 0:00:47]} 57. g3 {[%emt 0:00:27]} Kc5 {[%emt 0:00:49]} 58. Kg2 {[%emt 0:01:05]} Kd6 {[%emt 0:00:24]} 59. Rf6+ {[%emt 0:00:56]} Kd7 {[%emt 0:00:04]} 60. Kf3 {[%emt 0:01:15]} Rd6 {[%emt 0:01:06]} 61. Rxd6+ {[%emt 0:01:47]} Kxd6 {[%emt 0:00:05]} 1-0

[Event "Chinese League Division-A 2024"]
[Site "Fuling Chongqing"]
[Date "2024.07.02"]
[Round "6.5"]
[White "Wang, Yu A."]
[Black "Guo, Qi"]
[Result "1/2-1/2"]
[ECO "C47"]
[WhiteElo "2234"]
[BlackElo "2362"]
[Annotator "TA"]
[PlyCount "64"]
[EventDate "2024.06.28"]
[EventType "team-tourn"]
[EventCountry "CHN"]
[SourceTitle "playchess.com"]
[Source "ChessBase"]
[SourceQuality "1"]
[TimeControl "40/5400+30:1800+30"]

{[%evp 24,64,8,10,16,12,22,15,12,21,25,24,28,20,11,22,29,9,29,31,31,20,66,66,66,66,66,66,64,38,65,59,58,58,58,39,80,79,76,67,106,100,83]} 1. e4 {[%emt 0:00:01]} e5 {[%emt 0:00:25]} 2. Nf3 {[%emt 0:00:02]} Nc6 {[%emt 0:00:07]} 3. Nc3 {[%emt 0:00:20]} Nf6 {[%emt 0:00:41]} 4. d4 {[%emt 0:00:02]} exd4 {[%emt 0:00:26]} 5. Nxd4 {[%emt 0:00:03]} Bb4 {[%emt 0:00:15]} 6. Nxc6 {[%emt 0:00:07]} bxc6 {[%emt 0:00:05]} 7. Bd3 {[%emt 0:00:04]} O-O {[%emt 0:00:30]} 8. O-O {[%emt 0:00:30]} d5 {[%emt 0:00:30]} 9. exd5 {[%emt 0:00:30]} cxd5 {[%emt 0:01:51]} 10. Bg5 {[%emt 0:00:00]} c6 {[%emt 0:00:27]} 11. Qf3 {[%emt 0:00:00]} Bd6 {[%emt 0:00:19]} 12. Rae1 {[%emt 0:02:01]} Rb8 {[%emt 0:02:40]} 13. Nd1 {[%emt 0:03:29]} h6 {[%emt 0:04:04]} 14. Bxf6 {[%emt 0:00:28]} Qxf6 {[%emt 0:00:30]} 15. Qxf6 {[%emt 0:00:30]} gxf6 {[%emt 0:00:00][%cal Bg7f6,Bf6f5,Bf5f4][%mdl 32] The position is equal.} 16. b3 {[%emt 0:00:00]} f5 {[%emt 0:01:23]} 17. Ne3 {[%emt 0:00:14]} f4 {[%emt 0:00:41]} 18. Nf5 Bxf5 {[%emt 0:00:14]} 19. Bxf5 {[%emt 0:00:14]} Kg7 {[%emt 0:00:49]} 20. g4 {[%emt 0:07:48]} Bb4 {[%emt 0:08:33]} 21. Rd1 {[%emt 0:10:51]} Kf6 {[%emt 0:07:52]} 22. Kg2 {[%emt 0:03:48]} Bc3 {[%emt 0:01:21]} (22... Ke5 $11) 23. Rd3 $14 {[%emt 0:03:48]} Be5 {[%emt 0:00:50][%cal Oh6h5]} 24. Rh3 {[%emt 0:07:39]} Kg7 {[%emt 0:06:37]} 25. Re1 {[%emt 0:04:52]} f6 {[%emt 0:00:23]} 26. g5 {[%emt 0:13:11]} Rh8 {[%emt 0:00:25]} 27. gxh6+ {[%emt 0:00:37]} Rxh6 {[%emt 0:00:06]} 28. Rxh6 {[%emt 0:00:24]} Kxh6 {[%emt 0:00:27] KRB-KRB} 29. Bd7 {[%emt 0:02:37]} c5 {[%emt 0:00:57]} 30. Be6 {[%emt 0:02:12]} Rd8 {[%emt 0:01:41]} 31. Rd1 {[%emt 0:02:28]} Bd4 {[%emt 0:04:08]} 32. Kf3 {[%emt 0:05:26]} Rd6 {[%emt 0:00:23] Weighted Error Value: White=0.05 (flawless) /Black=0.11 (very precise) .  Mistake:       	---       	Black=1      Inaccurate:     	White=1     	Black=3      OK:         	White=8     	Black=6      Best:        	---       	Black=1} 1/2-1/2

[Event "Chinese League Division-A 2024"]
[Site "Fuling Chongqing"]
[Date "2024.07.02"]
[Round "6.6"]
[White "Jiang, Haochen"]
[Black "Bai, Jinshi"]
[Result "1/2-1/2"]
[ECO "C47"]
[WhiteElo "2290"]
[BlackElo "2564"]
[Annotator "TA"]
[PlyCount "60"]
[EventDate "2024.06.28"]
[EventType "team-tourn"]
[EventCountry "CHN"]
[SourceTitle "playchess.com"]
[Source "ChessBase"]
[SourceQuality "1"]
[TimeControl "40/5400+30:1800+30"]

{[%evp 14,60,0,0,0,-14,24,24,27,12,5,5,15,3,9,9,10,7,14,2,17,15,18,19,14,2,5,5,5,0,0,0,0,0,6,5,11,0,20,0,0,0,0,0,0,0,0,0,0]} 1. e4 {[%emt 0:00:02]} e5 {[%emt 0:00:08]} 2. Nf3 {[%emt 0:00:06]} Nc6 {[%emt 0:00:11]} 3. Nc3 {[%emt 0:01:57]} Nf6 {[%emt 0:00:16]} 4. d4 {[%emt 0:00:18]} exd4 {[%emt 0:00:22]} 5. Nxd4 {[%emt 0:00:06]} Bb4 {[%emt 0:00:09]} 6. Nxc6 {[%emt 0:00:10]} bxc6 {[%emt 0:00:08]} 7. Bd3 {[%emt 0:00:09]} d5 {[%emt 0:00:23]} 8. exd5 {[%emt 0:00:34]} O-O {[%emt 0:00:16]} 9. O-O {[%emt 0:00:09]} Bg4 {[%emt 0:00:30]} 10. f3 {[%emt 0:02:10]} Bh5 {[%emt 0:00:06] White has an edge.} 11. dxc6 {[%emt 0:00:20]} Qd4+ $1 {[%emt 0:00:08] The position is equal.} 12. Kh1 {[%emt 0:00:00][%cal Od3h7] [#] Black must now prevent Bxh7+!} Bxc3 {[%emt 0:00:06]} 13. bxc3 {[%emt 0:00:05]} Qxc3 {[%emt 0:00:06]} 14. Bf4 {[%emt 0:01:07]} Qxc6 {[%emt 0:00:18]} 15. Qd2 {[%emt 0:01:12]} Bg6 {[%emt 0:02:10]} 16. Qa5 {[%emt 0:00:32]} Bxd3 {[%emt 0:17:48]} 17. cxd3 {[%emt 0:00:10]} Nd5 {[%emt 0:00:22]} 18. Rac1 {[%emt 0:08:14]} Qd7 {[%emt 0:00:17]} 19. Bxc7 {[%emt 0:00:21]} Nxc7 {[%emt 0:00:24]} 20. Qxc7 {[%emt 0:01:54]} Qxd3 {[%emt 0:00:05]} 21. Qc4 {[%emt 0:00:09]} Rfd8 {[%emt 0:01:46]} 22. Qxd3 {[%emt 0:00:46]} Rxd3 {[%emt 0:00:06]} 23. Rfd1 {[%emt 0:00:06]} Rxd1+ {[%emt 0:01:35]} 24. Rxd1 $11 {[%emt 0:00:02][%mdl 4096] Endgame. KR-KR} Kf8 {[%emt 0:00:06]} 25. h4 {[%emt 0:02:01]} Ke7 {[%emt 0:01:46]} 26. Re1+ {[%emt 0:01:27]} Kd6 {[%emt 0:00:33]} 27. Rd1+ {[%emt 0:00:16]} Kc6 {[%emt 0:03:06]} 28. Rc1+ {[%emt 0:00:54]} Kd6 {[%emt 0:06:24]} 29. Rd1+ {[%emt 0:00:08]} Kc6 {[%emt 0:00:09]} 30. Rc1+ {[%emt 0:00:05]} Kd6 {[%emt 0:00:11] An uneventful encounter.   Weighted Error Value: White=0.05 (flawless) /Black=0.04 (flawless) .  Inaccurate:     	---       	Black=1      OK:         	White=6     	Black=11     Best:        	White=1     	Black=1      Strong:       	---       	Black=1} 1/2-1/2